Cogmind - Beta 13 @@@ ROGUE MODE // 2024.06.06 @ 03:31:05 Player: Shippujinlai Result: Destroyed by 04-DQR(R) with Subdweller Laser Performance ------------- Evolutions (0) 0 Regions Visited (2) 400 Robots Destroyed (23) 115 Value Destroyed (420) 420 Prototype IDs (0) 0 Alien Tech Used (0) 0 Bonus (0) 0 TOTAL SCORE: 935 Bonus ------- None Cogmind --------- Core Integrity 0/250 Matter 210/300 Energy 159/160 System Corruption 0% Temperature Cool (27) Movement Hovering (116) Ox1 Location -10/Subcaves Parts ------- > --- POWER (1) -------- Light Nuclear Core > --- PROPULSION (2) --- Hover Unit Hover Unit > --- UTILITY (2) ------ Small Storage Unit Makeshift Terrain Scanner > --- WEAPON (2) ------- Subdweller Beam Cannon Battle Cannon > --- INVENTORY (8) ---- Wheel Subdweller Monowheel Makeshift Axe Peak State ------------ > --- POWER ------------ Light Nuclear Core > --- PROPULSION ------- Hover Unit Hover Unit > --- UTILITY ---------- Small Storage Unit Makeshift Terrain Scanner > --- WEAPON ----------- Subdweller Beam Cannon Battle Cannon > --- INVENTORY -------- Wheel Subdweller Monowheel Makeshift Axe [Rating: 17] Favorites ----------- Power Light Nuclear Core Engine Ion Engine Power Core Light Nuclear Core Propulsion Hover Unit Treads Light Treads Wheel Compact Wheel Hover Unit Hover Unit Utility Small Storage Unit Device High-powered Tractor Beam Storage Small Storage Unit Weapon Light Assault Rifle Energy Cannon Subdweller Beam Cannon Ballistic Gun Light Assault Rifle Ballistic Cannon Battle Cannon Slashing Weapon Makeshift Axe Build | -11 -10 -10 ------- Run | Yrd Mat Sub Slots Evolved . | . . . Power . | . . . Propulsion . | . . . Utility . | . . . Weapon . | . . . Parts Attached 33 | 7 12 14 Power 4 | 1 1 2 Engine 2 | 1 . 1 Core 2 | . 1 1 Reactor . | . . . Propulsion 15 | 3 10 2 Treads 1 | 1 . . Leg . | . . . Wheel 2 | 2 . . Hover 12 | . 10 2 Flight . | . . . Utility 3 | 1 1 1 Device 2 | . 1 1 Storage 1 | 1 . . Processor . | . . . Hackware . | . . . Protection . | . . . Artifact . | . . . Weapon 11 | 2 . 9 Energy Gun . | . . . Energy Cannon 3 | . . 3 Ballistic Gun 3 | 2 . 1 Ballistic Cannon 2 | . . 2 Launcher . | . . . Special Weapon . | . . . Impact Weapon . | . . . Slashing Weapon 3 | . . 3 Piercing Weapon . | . . . Special Melee Weapon . | . . . Unidentified Prototypes . | . . . Parts Lost 8 | . 4 4 Power 2 | . 1 1 Propulsion 4 | . 2 2 Utility 1 | . 1 . Weapon 1 | . . 1 Highest Loss Streak 4 | . 3 4 To Critical Strikes . | . . . Average Slot Usage (%) 76 | . 82 70 Engine 5 | . 10 1 Core 7 | . 2 11 Wheel 2 | . 5 . Hover 24 | . 22 27 Device 6 | . 9 4 Storage 14 | . 14 14 Ballistic Gun 11 | . 16 6 Slashing Weapon 1 | . . 2 Naked Turns . | . . . Heaviest Build 19 | 13 14 19 Greatest Support 26 | 26 26 12 Greatest Overweight (x) 1 | . 1 1 Average Overweight (x) . | . . . Largest Inventory Capacity 8 | 8 8 8 Average Capacity 7 | 7 8 8 Most Carried 7 | 1 4 7 Average Carried 3 | . 2 5 Final Capacity 8 | 8 8 8 Final Carried 4 | 1 4 3 Class Distribution -------------------- 100% | Mutant Dominant Class ---------------- Mutant | -10/Materials Mutant | -10/Subcaves Resources | -11 -10 -10 ----------- Run | Yrd Mat Sub Matter Collected 678 | 289 253 136 Remotely 179 | . 179 . Salvage Created 778 | 132 566 80 Parts 60 | 8 48 4 Haulers Intercepted 2 | . 2 . Recyclers Shooed 3 | 3 . . Parts Field Recycled . | . . . Retrieved Matter . | . . . Parts Self-Destructed . | . . . Prevented . | . . . Kills | -11 -10 -10 ------- Run | Yrd Mat Sub Combat Hostiles Destroyed 11 | . 8 3 Guns 8 | . 8 . Cannons 3 | . . 3 Classes Destroyed 9 | 2 6 1 Worker 2 | . 2 . Tunneler 3 | 2 1 . Hauler 2 | . 2 . Recycler 2 | 1 1 . Operator 2 | . 2 . Watcher 1 | . 1 . Swarmer 3 | . 3 . Grunt 5 | . 5 . Subdweller 3 | . . 3 Best Kill Streak 3 | 2 3 3 Combat Bots Only 3 | . 3 3 Max Kills in Single Turn 1 | 1 1 1 Gunslinging . | . . . Exploded . | . . . Melee . | . . . Uniques/NPCs Destroyed . | . . . Combat | -11 -10 -10 -------- Run | Yrd Mat Sub Hostile Shots Fired 97 | . 58 39 Missed 33 | . 18 15 Damage Taken 933 | 2 441 490 Core 260 | . 126 134 Absorbed by Shields . | . . . Core Remaining (%) 100 | 100 . . Volleys Fired 153 | 12 125 16 Largest 2 | 2 2 2 Hottest 119 | 40 40 119 Shots Fired 187 | 24 132 31 Gun 164 | 24 132 8 Cannon 23 | . . 23 Launcher . | . . . Special . | . . . Kinetic 180 | 24 132 24 Thermal 7 | . . 7 Explosive . | . . . Electromagnetic . | . . . Robot Hit Streak 11 | 6 11 8 Robot Miss Streak 4 | 3 4 1 Penetration Max . | . . . Secondary Targets . | . . . Shots Hit Robots 120 | 14 81 25 Core Hits 47 | 6 36 5 Critical Kills 1 | . 1 . Critical Parts Destroyed 1 | . 1 . Critical Strikes 2 | . 2 . Destroy 2 | . 2 . Melee Attacks 14 | . . 14 Impact . | . . . Slashing 14 | . . 14 Piercing . | . . . Sneak Attacks . | . . . Combat Hostiles . | . . . Follow-up Attacks . | . . . Damage Inflicted 1300 | 155 708 437 Guns 888 | 151 703 34 Cannons 403 | . . 403 Explosions . | . . . Melee . | . . . Ramming 9 | 4 5 . Kinetic 1126 | 151 703 272 Thermal 165 | . . 165 Explosive . | . . . Electromagnetic . | . . . Impact . | . . . Slashing . | . . . Piercing . | . . . Highest Corruption . | . . . Average Corruption . | . . . Corruption Purged . | . . . Corruption Blocked . | . . . Overload Shots . | . . . Overflow Damage . | . . . Projectiles . | . . . Explosions . | . . . Melee . | . . . Knockbacks 5 | . . 5 Impact . | . . . Kinetic 5 | . . 5 Secondary . | . . . Self-Inflicted Damage 4 | 2 2 . Shots . | . . . Rammed 3 | 1 2 . Targets Rammed 3 | 1 2 . Kicked . | . . . Crushed . | . . . Highest Temperature 21 | . 13 21 Average Temperature 4 | . 3 11 Received Heat Transfer 231 | . 177 54 Siege Activations . | . . . Robots Corrupted . | . . . Combat Hostiles . | . . . Parts Fried . | . . . Impact Corruptions . | . . . Robots Melted . | . . . Combat Hostiles . | . . . Parts Melted . | . . . Heat Transferred 222 | . . 222 Parts Sabotaged . | . . . Parts Stolen . | . . . Parts Stripped . | . . . Power Chain Reactions . | . . . Alert | -11 -10 -10 ------- Run | Yrd Mat Sub Peak Influence 213 | 15 213 . Initial 9 | . 9 . Average 86 | 4 102 . Maximum Alert Level 1 | . 1 . Low Security (%) 99 | 100 98 . Level 1 . | . 1 . Level 2 . | . . . Level 3 . | . . . Level 4 . | . . . Level 5 . | . . . High Security . | . . . Max Security . | . . . Squads Dispatched 4 | . 4 . Investigation . | . . . Extermination . | . . . Reinforcement 4 | . 4 . Assault . | . . . Garrison . | . . . Intercept . | . . . Searches Triggered . | . . . Construction Impeded . | . . . Haulers Reinforced . | . . . Active Scanning Responses . | . . . Cargo Convoy Interrupts . | . . . Stealth | -11 -10 -10 --------- Run | Yrd Mat Sub Distress Signals 2 | . 2 . Communications Jammed . | . . . Distress Signals . | . . . Times Spotted 25 | . 19 6 Peak Tracking Total 3 | . 3 3 Tactical Retreats 1 | . . 1 Traps | -11 -10 -10 ------- Run | Yrd Mat Sub Traps Triggered . | . . . Indirectly . | . . . Trap Hack Attempts . | . . . Triggered . | . . . Disarmed . | . . . Reprogrammed . | . . . Reused . | . . . Traps Extracted . | . . . Installed . | . . . Triggered . | . . . Machines | -11 -10 -10 ---------- Run | Yrd Mat Sub Machines Disabled . | . . . Max in Single Turn . | . . . Machines Repaired . | . . . Machines Dismantled . | . . . Machines Sabotaged . | . . . Overloaded Fab Kills . | . . . Hacking | -11 -10 -10 --------- Run | Yrd Mat Sub Machines Accessed 3 | . 3 . Terminals 3 | . 3 . Fabricators . | . . . Repair Stations . | . . . Recycling Units . | . . . Scanalyzers . | . . . Garrison Access . | . . . Total Hacks 6 | . 6 . Successful 3 | . 3 . Failed 3 | . 3 . Catastrophic . | . . . Database Lockouts . | . . . Manual 3 | . 3 . Terminals 6 | . 6 . Fabricators . | . . . Repair Stations . | . . . Recycling Units . | . . . Scanalyzers . | . . . Garrison Access . | . . . Terminal Hacks 3 | . 3 . Branch Access Points 1 | . 1 . Recall Reinforcements 1 | . 1 . Hauler Manifests 1 | . 1 . Fabricator Hacks . | . . . Repair Station Hacks . | . . . Recycling Unit Hacks . | . . . Scanalyzer . | . . . Garrison Access Hacks . | . . . Unauthorized Hacks . | . . . Terminals . | . . . Fabricators . | . . . Repair Stations . | . . . Recycling Units . | . . . Scanalyzers . | . . . Garrison Access . | . . . Data Cores Recovered . | . . . Used . | . . . Hacking Detections 1 | . 1 . Full Trace Events . | . . . Feedback Events . | . . . Feedback Blocked . | . . . Robot Schematics Acquired . | . . . Robots Built . | . . . Authchips . | . . . Time . | . . . Total Robot Build Rating . | . . . Part Schematics Acquired . | . . . Parts Built . | . . . Authchips . | . . . Time . | . . . Total Part Build Rating . | . . . Parts Repaired . | . . . Time . | . . . Parts Recycled . | . . . Recycled Matter . | . . . Retrieved Matter . | . . . Retrieved Components . | . . . Parts Scanalyzed . | . . . Part Schematics Acquired . | . . . Parts Damaged . | . . . Bothacking | -11 -10 -10 ------------ Run | Yrd Mat Sub Used RIF Installer . | . . . Robots Hacked . | . . . Non-combat . | . . . Combat . | . . . Robot Hacks Applied . | . . . Relay Couplers Released . | . . . Fabnet Peak Effective % . | . . . Robots Rewired . | . . . Allies Hacked . | . . . Hacks Repelled . | . . . Allies | -11 -10 -10 -------- Run | Yrd Mat Sub Total Allies . | . . . Largest Group . | . . . Highest-Rated Group . | . . . Highest-Rated Ally . | . . . Total Orders . | . . . Ally Attacks . | . . . Total Damage . | . . . Kills . | . . . Allies Corrupted . | . . . Allies Melted . | . . . Intel | -11 -10 -10 ------- Run | Yrd Mat Sub Robot Analysis Total . | . . . Derelict Logs Recovered 1 | . . 1 Drone Launches . | . . . Drone Recoveries . | . . . Exploration | -11 -10 -10 ------------- Run | Yrd Mat Sub Turns Passed 1236 | 105 534 597 Spaces Moved 1330 | 63 459 808 Core 2 | 2 . . Treads 3 | 3 . . Legs . | . . . Wheels 122 | 58 64 . Hover 1203 | . 395 808 Flight . | . . . Fastest Speed 50 | 50 56 56 Average Speed 61 | 92 60 58 Slowest Speed 160 | 160 120 116 Overloaded Moves . | . . . Propulsion Burnouts . | . . . Robots Hopped . | . . . Cave-ins Triggered . | . . . Exploration Rate (%) 39 | 4 66 48 Regions Visited 2 Branch Regions 1 Pre-discovered Areas 1 | . . 1 Known Exits Taken . | . . . Unknown Exits Taken 2 | 1 1 . Scrap Searched 4 | . . 4 Spaces Dug 1 | . . 1 Terrain Destroyed 1 | . . 1 Melee 1 | . . 1 Projectile . | . . . AOE . | . . . Terrain Rammed . | . . . Walls Destroyed . | . . . Machines Disabled . | . . . Actions | -11 -10 -10 --------- Run | Yrd Mat Sub Total 1576 | 84 603 889 Wait 28 | . . 28 Move 1329 | 63 458 808 Hop . | . . . Pick Up 6 | 1 2 3 Fast Attach 12 | 7 3 2 Attach 13 | . 3 10 Detach 7 | . 1 6 Swap 8 | . 6 2 Drop 4 | 1 3 . Fire 153 | 12 125 16 Melee 14 | . . 14 Ram 2 | . 2 . Kick . | . . . Crush . | . . . Escape Stasis . | . . . Rewire . | . . . Trap . | . . . Miscellaneous . | . . . Route ------- -11/Scrapyard -10/Materials (discovered 4 exits: [*Mat x2] / *Min / [*Sub]) -10/Subcaves History --------- Turn | Location | Event 24 | -11/Scrapyard | Discovered new exit (range 15) 106 | -11/Scrapyard | Entered Materials 222 | -10/Materials | Discovered new exit (range 12) 276 | -10/Materials | Discovered new exit (range 8) 316 | -10/Materials | Build established: Mutant 457 | -10/Materials | Discovered new exit (range 7) 532 | -10/Materials | Core integrity fell below 50% 557 | -10/Materials | Lost 3 parts (1p1n1u) 567 | -10/Materials | Identified exit to Mines 634 | -10/Materials | Discovered new exit (range 12) 640 | -10/Materials | Entered Subcaves 837 | -10/Subcaves | A swath of the cavern ceiling suddenly collapsed 933 | -10/Subcaves | Learned location of Zion (-6) 933 | -10/Subcaves | Met a Zionite searching for "candidates" 943 | -10/Subcaves | Ambushed by Subdwellers from Twisted Machinery 991 | -10/Subcaves | Core integrity fell below 20% 1020 | -10/Subcaves | Lost 4 parts (1p2n1w) 1237 | -10/Subcaves | Destroyed by 04-DQR(R) with Subdweller Laser Last Messages --------------- 00966_ Lgt. Ion Engine destroyed. 00970_ SE-SY5(R) knocked back. 00986_ Lgt. Assault Rifle destroyed. 00988_ Hover Unit destroyed. 00990_ SE-SY5(R) destroyed. 00996_ S9-N4O(R) destroyed. 01002_ 0S-XFI(R) destroyed. 01020_ Acquired 20 matter. 01020_ Acquired 29 matter. 01021_ Acquired 31 matter. 01022_ Acquired 4 matter. 01022_ Acquired 7 matter. 01023_ Acquired 4 matter. 01026_ Acquired Sub. Monowheel. 01046_ Subatomizers dissect the Sub. Machine Gun. 01066_ Acquired Mak. Terrain Scanner. 01069_ Acquired 13 matter. 01070_ Subatomizers dissect the Mak. Leg. 01232_ 04-DQR(R) knocked back. Map ----- +----------------------------------------------------+ | ?????????????????????????????????????????????????? | | ?????????????????????????????????????????????????? | | ?????????????????????????????????????????????????? | | ?????????????????????????????????????????????????? | | ?????????????????????????????????????????????????? | | ?????????????????????????????????????????????????? | | ?????????????????????????????????????????????????? | | ??????????????????????????? ?????????????????????? | | ?????????????????????????? ????????????????????? | | ??????????????????????????# ??#?????????????????? | | ????????????????#?????????# ????????????????????? | | ?????????????????????#???? ????????????????????? | | ?????????????????????????? ????????????????????? | | ??????????????????????????# ??#?????????????????? | | ??????????????????????????# ????????????????????? | | ??????????????????#????#??# #?????????#?????????? | | ?????????????????????????## ##??????????????????? | | ?????????????????????????# #??????????????????? | | ?????????????#???????????# #??????????????????? | | ????????????????#????????# #???????#????#?????? | | ?????????????????????????? ##????????????#????? | | ???????????????????????????# #?????????????????? | | ????????????????????????#### ########???????????? | | ????????????????????#??## # ## #???????????? | | ???????????????????????# R ## #???????????? | | ?????????????????????### @ R % ###???????????? | | ???????????#??????????# ##?????????#??? | | ??????????????????????## #### #????????????? | | ???????????????????????###?## #????????????? | | ??????????????????#????????# #??????????#?? | | ???????????????#?????#####?# ##???????????? | | ????????????????????##!#%#### ##??????????? | | ????????????????????#%=| %#?## #####??????? | | ????????????????#???### "##??## ##?????? | | ?????????????#????#### ###???# ##????? | | ????????????????#??# ## # #??## ##???? | | ???????????????????# " " #??# ##??? | | ???????????????????# #### #??? | | ???????????????????## ##??? | | ???????????????????## ## #???? | | ??????????????????## #?? #???? | | ?????????????????## ##### ##?# ##???? | | ?????????????????# ## ##??## ### #????? | | ?????????????????# ## ###?# #????? | | ?????????????##### ## #### ##????? | | ?????????????# ### ## ## #?????? | | ?????????????# ## ## ## #?????? | | ?????????????# ### # #?????? | | #######???#### #####?## ###????# | | ##??# ### ##?????## # #????? | +----------------------------------------------------+ Best States ------------- Heat Dissipation 25 Energy Generation 14 Energy Capacity 250 Matter Stores 300 Matter Capacity 300 Sight Range 16 Terrain Scan Range 18 Terrain Scan Density 10 Evasion (%) 53 Recoil Reduction 1 Item Schematics ----------------- None Robot Schematics ------------------ None Fabricated ------------ Nothing Alien Tech Used ----------------- None Achievements -------------- None Challenges ------------ None Game ------ Seed HybridOmegaJammer Manual? 0 Play Time 00:16:54 Cumulative 54.8 hours Start 2024.06.06 @ 03:16:54 End 2024.06.06 @ 03:31:05 Sessions 1 Manual Loads 0 Difficulty Rogue Special Mode None Game No. 27 Rogue 1 Adventurer 19 Explorer 7 Win Type - Total 2 Types 2/0/0/0/0/0/0/0/0 Lore% 35 Gallery% 49 Achievement% 41 Wizard Run 0 Options --------- Layout 1 ASCII 0 Keyboard 0 Movement Mouse Keybinds 0 Fullscreen 0 Font 28/SmallcapsGlow Map View 50x40 Zoom Use 6% Tactical HUD 1 Map Filters NONE Filters NONE Steam 1 RUN: b2d99e28-58cf-4fe9-ac4c-87dc2cd8064c